{"text_format":"1","workbook":"xlsx","n_sheets":2,"sheets":["Pasiūlymas","Subtiekėjai ir priedai"],"not_rendered":{"charts":0,"images":0,"macros":1,"external_links":0,"defined_names":0,"comments":0,"pivot_tables":0},"unopened":[],"bounds":{"document_bytes":16777216,"sheet_cells":100000,"rows_first":2000,"rows_last":500,"rows_between":2000,"halvings":0,"cell_chars":16384,"cell_head_chars":4096},"cells_cut":0,"cells_raw":0,"read":"whole","date_system":"1900"}

{"sheet":"Pasiūlymas","index":0,"n_rows":400,"n_cols":8,"rows_kept":400,"cut":false,"hidden":false,"merged":[[29,0,29,2],[29,3,29,6],[11,0,11,1],[11,2,11,6],[12,0,12,1],[12,2,12,6],[13,0,13,1],[13,2,13,6],[14,0,14,1],[14,2,14,6],[15,0,15,1],[15,2,15,6],[16,0,16,1],[16,2,16,6],[17,0,17,1],[17,2,17,6],[18,0,18,1],[18,2,18,6],[23,0,23,6],[19,0,19,1],[20,0,20,1],[19,2,19,6],[20,2,20,6],[22,0,22,6],[27,0,27,6],[28,0,28,6],[24,0,24,6],[25,0,25,6],[26,0,26,6],[380,5,396,5],[37,5,97,5],[110,5,169,5],[182,5,270,5],[283,5,323,5],[336,5,367,5]]}
[]
["PIRKIMO SĄLYGŲ PRIEDAS \"PASIŪLYMŲ FORMA\""]
[]
["REKLAMOS PASLAUGŲ PLANAVIMAS IR ADMINISTRAVIMAS VŠĮ „KAUNAS 2022“ KOMUNIKACIJAI IR SKLAIDAI 2021-AISIAIS IR 2022-AISIAIS M."]
[]
["Kam:","VšĮ Kaunas 2022"]
[]
["Data:","2021.08.27"]
["Nr.:","CARAT Nr.1"]
["Vieta:","Vilnius"]
[]
["Tiekėjo pavadinimas / Ūkio subjektų grupės nariai:",null,"UAB CARAT"]
["Tiekėjo kodas (-ai):",null,124216438]
["Tiekėjo adresas (-ai):",null,"A. Goštauto g. 40B, Vilnius, Lietuva"]
["Tiekėjo PVM mokėtojo kodas(-ai):",null,"LT242164314"]
["Tiekėjo / Ūkio subjektų grupės atsakingo partnerio sąskaitos numeris, banko pavadinimas ir banko kodas (-ai):",null,"LT917300010000022959,                                                                                                                             \"Swedbank\" AB, Vilnius, Lithuania,                                                                                                                 HABALT22"]
["Asmens atsakingo už pasiūlymą vardas, pavardė:",null,"Rita Jermakaitė"]
["Asmens atsakingo už pasiūlymą telefono numeris, el. pašto adresas:",null,"+370 6860 4918, rita.jermakaite@carat.com"]
["Tiekėjo / Ūkio subjektų grupės, laimėjimo atveju, pasirašančio sutartį asmens vardas, pavardė, pareigos:",null,"Rita Jermakaitė, vykdančioji direktorė"]
["Tiekėjo / Ūkio subjektų grupės, laimėjimo atveju, už sutarties vykdymą atsakingo asmens vardas, pavardė, telefono numeris, elektroninio pašto adresas:",null,"Rita Jermakaitė,                                                                                                                                                    +370 6860 4918,                                                                                                                            rita.jermakaite@carat.com"]
["(1) Tiekėjo / Ūkio subjektų grupės narių, (2) ūkio subjektų, kurių pajėgumais remiamasi, ir (3) jei pašalinimo pagrindai taikomi visiems subtiekėjams - subtiekėjų, kolegialaus priežiūros organo (Stebėtojų tarybos) ir (ar) kolegialaus valdymo organo (Valdybos) narių sąrašas (jei sudaryta) ir (ar) asmuo, kuriam suteikti VPĮ 46 str. 2 d. 2 p. numatyti įgaliojimai",null,null,null,null,null,null,{"$f":"IF((SUMPRODUCT(--(C21=\"\"))>0), \"Privaloma užpildyti, kai taikomi pašalinimo pagrindai\", \"\")","v":"Privaloma užpildyti, kai taikomi pašalinimo pagrindai"}]
[]
["Tiekėjo patvirtinimai:"]
["1. Šiuo pasiūlymu pažymime, kad sutinkame su visomi pirkimo sąlygomis, nustatytomis:"]
["1.1. viešojo pirkimo dokumentuose"]
["1.2. kituose pirkimo dokumentuose (jų paaiškinimuose, papildymuose)."]
["2. Patvirtiname, kad informacija ir duomenys, pateikti pasiūlyme, yra teisingi ir apima viską, ko reikia tinkamam sutarties įvykdymui"]
["3. Patvirtiname, kad jei pasiūlyme nenurodyti kolegialaus priežiūros/valdymo organų nariai, šie organai juridiniuose asmenyse nėra sudaryti (taikoma, kai pirkimo dokumentuose nustatyti pašalinimo pagrindai)."]
["4. Pasiūlymas galioja iki termino, nustatyto pirkimo dokumentuose."]
["5. Tais atvejais, kai pagal galiojančius teisės aktus tiekėjui nereikia mokėti PVM, jis nurodo priežastis, dėl kurių PVM nemoka:"]
["6. Tiekėjas kainas pateikia, nurodydamas ne daugiau skaičių po kablelio, nei leidžiama pirkimo dokumentuose."]
["1. DALIS","REKLAMA INTERNETO PORTALUOSE"]
[]
["Tiekėjo pasiūlymas:"]
["Nr.","Pavadinimas","Preliminati apimtis","Mato vienetas","Vieneto įkainis be PVM, Eur","Administravimo procentas (%)","Suma be PVM, Eur","Portalo pavadinimas"]
["1.","Reklama interneto portaluose"]
["1.1.","Interneto portalas Nr. 1"]
["1.1.1.","Interneto portalas Nr. 1 banerių formatai Desktop pozicijos (vnt. – 1000 parodymų)",5000,"Vnt.",1.8,1E-4,{"$f":"IF(ISBLANK(E38),\"\", PRODUCT(C38,E38)+PRODUCT(C38,E38,F38))","v":9000.9},"kaunas.kasvyksta.lt"]
["1.1.1.1.","300x600"]
["1.1.2.","Interneto portalas Nr. 1 banerių formatai Desktop pozicijos (vnt. – 1000 parodymų)",1000,"Vnt.",1.8,null,{"$f":"IF(ISBLANK(E40),\"\", PRODUCT(C40,E40)+PRODUCT(C40,E40,F38))","v":1800.18},"kaunas.kasvyksta.lt"]
["1.1.2.1.","560x300"]
["1.1.3.","Interneto portalas Nr. 1 banerių formatai Mobile pozicijos (vnt. – 1000 parodymų)",5000,"Vnt.",0.6,null,{"$f":"IF(ISBLANK(E42),\"\", PRODUCT(C42,E42)+PRODUCT(C42,E42,F38))","v":3000.3},"kaunas.kasvyksta.lt"]
["1.1.3.1.","300x250"]
["1.2.","Interneto portalas Nr. 2"]
["1.2.1.","Interneto portalas Nr. 2 banerių formatai Desktop pozicijos (vnt. – 1000 parodymų)",5000,"Vnt.",1.21,null,{"$f":"IF(ISBLANK(E45),\"\", PRODUCT(C45,E45)+PRODUCT(C45,E45,F38))","v":6050.6049999999996},"Delfi.lt"]
["1.2.1.1.","1200x250"]
["1.2.2.","Interneto portalas Nr. 2 banerių formatai Desktop pozicijos (vnt. – 1000 parodymų)",1000,"Vnt.",0.99,null,{"$f":"IF(ISBLANK(E47),\"\", PRODUCT(C47,E47)+PRODUCT(C47,E47,F38))","v":990.09900000000005},"Delfi.lt"]
["1.2.2.1.","1200x120"]
["1.2.3.","Interneto portalas Nr. 2 banerių formatai Desktop pozicijos (vnt. – 1000 parodymų)",10000,"Vnt.",2.42,null,{"$f":"IF(ISBLANK(E49),\"\", PRODUCT(C49,E49)+PRODUCT(C49,E49,F38))","v":24202.42},"Delfi.lt"]
["1.2.3.1.","300x600"]
["1.2.4.","Interneto portalas Nr. 2 banerių formatai Desktop pozicijos (vnt. – 1000 parodymų)",1000,"Vnt.",0.99,null,{"$f":"IF(ISBLANK(E51),\"\", PRODUCT(C51,E51)+PRODUCT(C51,E51,F38))","v":990.09900000000005},"Delfi.lt"]
["1.2.4.1.","880x250"]
["1.2.5.","Interneto portalas Nr. 2 banerių formatai Desktop pozicijos (vnt. – 1000 parodymų)",500,"Vnt.",1.1000000000000001,null,{"$f":"IF(ISBLANK(E53),\"\", PRODUCT(C53,E53)+PRODUCT(C53,E53,F38))","v":550.05499999999995},"Delfi.lt"]
["1.2.5.1.","300x600 + expand 600x600"]
["1.2.6.","Interneto portalas Nr. 2 banerių formatai Desktop pozicijos (vnt. – 1000 parodymų)",5000,"Vnt.",1.65,null,{"$f":"IF(ISBLANK(E55),\"\", PRODUCT(C55,E55)+PRODUCT(C55,E55,F38))","v":8250.8250000000007},"Delfi.lt"]
["1.2.6.1.","Video Preroll VOD"]
["1.2.7.","Interneto portalas Nr. 2 banerių formatai Mobile pozicijos (vnt. – 1000 parodymų)",10000,"Vnt.",0.99,null,{"$f":"IF(ISBLANK(E57),\"\", PRODUCT(C57,E57)+PRODUCT(C57,E57,F38))","v":9900.99},"Delfi.lt"]
["1.2.7.1.","300x250"]
["1.2.8.","Interneto portalas Nr. 2 banerių formatai Mobile pozicijos (vnt. – 1000 parodymų)",5000,"Vnt.",1.76,null,{"$f":"IF(ISBLANK(E59),\"\", PRODUCT(C59,E59)+PRODUCT(C59,E59,F38))","v":8800.8799999999992},"Delfi.lt"]
["1.2.8.1.","300x600"]
["1.3.","Interneto portalas Nr. 3"]
["1.3.1.","Interneto portalas Nr. 3 banerių formatai Desktop pozicijos (vnt. – 1000 parodymų)",5000,"Vnt.",0.98,null,{"$f":"IF(ISBLANK(E62),\"\", PRODUCT(C62,E62)+PRODUCT(C62,E62,F38))","v":4900.49},"Lrytas.lt"]
["1.3.1.1.","1200x250"]
["1.3.2.","Interneto portalas Nr. 3 banerių formatai Desktop pozicijos (vnt. – 1000 parodymų)",5000,"Vnt.",0.68,null,{"$f":"IF(ISBLANK(E64),\"\", PRODUCT(C64,E64)+PRODUCT(C64,E64,F38))","v":3400.3400000000006},"Lrytas.lt"]
["1.3.2.1.","995x250"]
["1.3.3.","Interneto portalas Nr. 3 banerių formatai Desktop pozicijos (vnt. – 1000 parodymų)",10000,"Vnt.",0.53,null,{"$f":"IF(ISBLANK(E66),\"\", PRODUCT(C66,E66)+PRODUCT(C66,E66,F38))","v":5300.53},"Lrytas.lt"]
["1.3.3.1.","300x600"]
["1.3.4.","Interneto portalas Nr. 3 banerių formatai Desktop pozicijos (vnt. – 1000 parodymų)",1000,"Vnt.",1.8,null,{"$f":"IF(ISBLANK(E68),\"\", PRODUCT(C68,E68)+PRODUCT(C68,E68,F38))","v":1800.18},"Lrytas.lt"]
["1.3.4.1.","Wallpaper"]
["1.3.5.","Interneto portalas Nr. 3 banerių formatai Mobile pozicijos (vnt. – 1000 parodymų)",10000,"Vnt.",0.63,null,{"$f":"IF(ISBLANK(E70),\"\", PRODUCT(C70,E70)+PRODUCT(C70,E70,F38))","v":6300.63},"Lrytas.lt"]
["1.3.5.1.","300x250"]
["1.3.6.","Interneto portalas Nr. 3 banerių formatai Mobile pozicijos (vnt. – 1000 parodymų)",5000,"Vnt.",1.1599999999999999,null,{"$f":"IF(ISBLANK(E72),\"\", PRODUCT(C72,E72)+PRODUCT(C72,E72,F38))","v":5800.58},"Lrytas.lt"]
["1.3.6.1.","300x600"]
["1.4.","Interneto portalas Nr. 4"]
["1.4.1.","Interneto portalas Nr. 4 banerių formatai Desktop pozicijos (vnt. – 1000 parodymų)",10000,"Vnt.",0.8,null,{"$f":"IF(ISBLANK(E75),\"\", PRODUCT(C75,E75)+PRODUCT(C75,E75,F38))","v":8000.8},"15min.lt"]
["1.4.1.1.","300x600"]
["1.4.2.","Interneto portalas Nr. 4 banerių formatai Desktop pozicijos (vnt. – 1000 parodymų)",10000,"Vnt.",0.8,null,{"$f":"IF(ISBLANK(E77),\"\", PRODUCT(C77,E77)+PRODUCT(C77,E77,F38))","v":8000.8},"15min.lt"]
["1.4.2.1.","970x250"]
["1.4.3.","Interneto portalas Nr. 4 Video 16:9 parodymai, formatas .mp4 (vnt. – 1000 parodymas)",5000,"Vnt.",2,null,{"$f":"IF(ISBLANK(E79),\"\", PRODUCT(C79,E79)+PRODUCT(C79,E79,F38))","v":10001},"15min.lt"]
["1.4.3.1.","Preroll"]
["1.4.4.","Interneto portalas Nr. 4 banerių formatai Mobile pozicijos (vnt. – 1000 parodymų)",10000,"Vnt.",0.8,null,{"$f":"IF(ISBLANK(E81),\"\", PRODUCT(C81,E81)+PRODUCT(C81,E81,F38))","v":8000.8},"15min.lt"]
["1.4.4.1.","300x250"]
["1.4.5.","Interneto portalas Nr. 4 banerių formatai Mobile pozicijos (vnt. – 1000 parodymų)",1000,"Vnt.",1,null,{"$f":"IF(ISBLANK(E83),\"\", PRODUCT(C83,E83)+PRODUCT(C83,E83,F38))","v":1000.1},"15min.lt"]
["1.4.5.1.","300x600"]
["1.5.","Internetinė platforma manodienynas.lt"]
["1.5.1.","Banerinė reklama internetinėje platformoje manodienynas.lt (vnt. – 1000 parodymų arba savaitei)",1,"savaitė",540,null,{"$f":"IF(ISBLANK(E86),\"\", PRODUCT(C86,E86)+PRODUCT(C86,E86,F38))","v":540.05399999999997},"manodienynas.lt"]
["1.5.1.1.","1350x745 (Desktop)"]
["1.5.2.","Banerinė reklama internetinėje platformoje manodienynas.lt (vnt. – 1000 parodymų arba savaitei)",1000,"Vnt.",1.8,null,{"$f":"IF(ISBLANK(E88),\"\", PRODUCT(C88,E88)+PRODUCT(C88,E88,F38))","v":1800.18},"manodienynas.lt"]
["1.5.2.1.","1000x250 (Desktop)"]
["1.5.3.","Banerinė reklama internetinėje platformoje manodienynas.lt (vnt. – 1000 parodymų arba savaitei)",1000,"Vnt.",1.5,null,{"$f":"IF(ISBLANK(E90),\"\", PRODUCT(C90,E90)+PRODUCT(C90,E90,F38))","v":1500.15},"manodienynas.lt"]
["1.5.3.1.","300x250 (Mobile)"]
["1.6.","Internetinė platforma Tamo"]
["1.6.1.","Banerinė reklama internetinėje platformoje Tamo (vnt. - savaitė)",1,"savaitė",1200,null,{"$f":"IF(ISBLANK(E93),\"\", PRODUCT(C93,E93)+PRODUCT(C93,E93,F38))","v":1200.1199999999999},"Tamo"]
["1.6.1.1.","1920x1080 (Desktop)"]
["1.6.2.","Banerinė reklama internetinėje platformoje Tamo (vnt. – 1000 parodymų)",1000,"Vnt.",1.25,null,{"$f":"IF(ISBLANK(E95),\"\", PRODUCT(C95,E95)+PRODUCT(C95,E95,F38))","v":1250.125},"Tamo"]
["1.6.2.1.","1000x200 (Desktop)"]
["1.6.3.","Banerinė reklama internetinėje platformoje Tamo (vnt. – 1000 parodymų)",1000,"Vnt.",1,null,{"$f":"IF(ISBLANK(E97),\"\", PRODUCT(C97,E97)+PRODUCT(C97,E97,F38))","v":1000.1},"Tamo"]
["1.6.3.1.","300x250 (Mobile)"]
[null,null,null,null,"Palyginamoji pasiūlymo kaina be PVM",null,{"$f":"IF((COUNT(C38:C98)<>COUNT(G38:G98)),\"\", SUM(G38:G98))","v":143334.33199999999},{"$f":"IF((COUNT(C38:C98)<>COUNT(G38:G98)),\"Neužpildytos visų objektų kainos\", \"\")","v":""}]
[null,null,null,null,"PVM suma",null,{"$f":"G99*0.21","v":30100.209719999999}]
[null,null,null,null,"Palyginamoji pasiūlymo kaina su PVM",null,{"$f":"IF(ISBLANK(G100), \"\", SUM(G99:G100))","v":173434.54171999998}]
[]
[]
[]
["2. DALIS","REKLAMA SPAUDOJE"]
[]
["Tiekėjo pasiūlymas:"]
["Nr.","Pavadinimas","Preliminati apimtis","Mato vienetas","Vieneto įkainis be PVM, Eur","Administravimo procentas (%)","Suma be PVM, Eur","Leidinio pavadinimas"]
["2.","Reklama spaudoje"]
["2.1.","Straipsnių spausdinimas įskaitant maketavimą ir straipsnio parašymą (kur prašoma) nacionaliniai dienraščiai, savaitraščiai, laikraščiai, žurnalai"]
["2.1.1.","S2: Straipsnio sumaketavimas ir išpublikavimas Nacionaliniame verslo informaciją ir žinias skleidžiančiame savaitraštyje (1/2 psl.), straipsnį pateikia klientas",2,"Vnt.",1000,1E-4,{"$f":"IF(ISBLANK(E111),\"\", PRODUCT(C111,E111)+PRODUCT(C111,E111,F111))","v":2000.2},"Verslo žinios"]
["2.1.2.","S4: Nacionaliniame savaitraštyje dydis: 205 x 285 mm, straipsnį parengia leidinys",1,"Vnt.",1500,null,{"$f":"IF(ISBLANK(E112),\"\", PRODUCT(C112,E112)+PRODUCT(C112,E112,F111))","v":1500.15},"Savaitė"]
["2.1.3.","S4: Nacionaliniame savaitraštyje dydis: 205 x 140 mm, straipsnį parengia leidinys",2,"Vnt.",870,null,{"$f":"IF(ISBLANK(E113),\"\", PRODUCT(C113,E113)+PRODUCT(C113,E113,F111))","v":1740.174},"Savaitė"]
["2.1.4.","S6: Nacionaliniame gyvenimo būdo skaitmeniniame ir spausdintame žurnale-albume, apimtis 2 puslapiai, straipsnį parengia leidinys",1,"Vnt.",1200,null,{"$f":"IF(ISBLANK(E114),\"\", PRODUCT(C114,E114)+PRODUCT(C114,E114,F111))","v":1200.1199999999999},"Lamų slėnis"]
["2.1.5.","S6: Nacionaliniame kultūros ir meno skaitmeniniame ir spausdintame žurnale-albume, apimtis 0,5 puslapio, straipsnį parengia leidinys",3,"Vnt.",195,null,{"$f":"IF(ISBLANK(E115),\"\", PRODUCT(C115,E115)+PRODUCT(C115,E115,F111))","v":585.05849999999998},"Lamų slėnis"]
["2.1.6.","S7: Nacionaliniame kultūros ir meno ketvirtiniame žurnale, reklaminio projekto 1 psl., straipsnį parengia leidinys",1,"Vnt.",600,null,{"$f":"IF(ISBLANK(E116),\"\", PRODUCT(C116,E116)+PRODUCT(C116,E116,F111))","v":600.05999999999995},"Happy365"]
["2.1.7.","S8: Nacionaliniame dienraštyje darbo dieną, 1/2 puslapio apimties straipsnis, nesirenkant psl., jeigu straipsnį parengia leidinys",2,"Vnt.",678.3,null,{"$f":"IF(ISBLANK(E117),\"\", PRODUCT(C117,E117)+PRODUCT(C117,E117,F111))","v":1356.7356599999998},"Lietuvos rytas"]
["2.1.8.","S8: Nacionaliniame dienraštyje šeštadienį, 1/2 puslapio apimties straipsnis, nesirenkant psl. jeigu straipsnį parengia leidinys",2,"Vnt.",823.65,null,{"$f":"IF(ISBLANK(E118),\"\", PRODUCT(C118,E118)+PRODUCT(C118,E118,F111))","v":1647.4647299999999},"Lietuvos rytas"]
["2.1.9.","S8: Nacionaliniame dienraštyje darbo dieną, 1/2 puslapio apimties straipsnis, nesirenkant psl., jeigu straipsnį pateikia klientas",2,"Vnt.",629.85,null,{"$f":"IF(ISBLANK(E119),\"\", PRODUCT(C119,E119)+PRODUCT(C119,E119,F111))","v":1259.8259700000001},"Lietuvos rytas"]
["2.1.10.","S8: Nacionaliniame dienraštyje šeštadienį, 1/2 puslapio apimties straipsnis, nesirenkant psl. jeigu straipsnį pateikia klientas",2,"Vnt.",775.2,null,{"$f":"IF(ISBLANK(E120),\"\", PRODUCT(C120,E120)+PRODUCT(C120,E120,F111))","v":1550.5550400000002},"Lietuvos rytas"]
["2.1.11.","S9: Nacionaliniame savaitgaliniame gyvenimo būdo žurnale 1/2 psl., straipsnį parengia leidinys",1,"Vnt.",513,null,{"$f":"IF(ISBLANK(E121),\"\", PRODUCT(C121,E121)+PRODUCT(C121,E121,F111))","v":513.05129999999997},"Savaitgalis"]
["2.1.12.","S9: Nacionaliniame savaitgaliniame gyvenimo būdo žurnale puslapis, straipsnį parengia leidinys",1,"Vnt.",855,null,{"$f":"IF(ISBLANK(E122),\"\", PRODUCT(C122,E122)+PRODUCT(C122,E122,F111))","v":855.08550000000002},"Savaitgalis"]
["2.1.13.","S10: Nacionaliniame savaitiniame žurnale 1/2 psl., straipsnį parengia leidinys",1,"Vnt.",294.5,null,{"$f":"IF(ISBLANK(E123),\"\", PRODUCT(C123,E123)+PRODUCT(C123,E123,F111))","v":294.52945},"Stilius"]
["2.1.14.","S10: Nacionaliniame savaitiniame žurnale puslapis, straipsnį parengia leidinys",1,"Vnt.",522.5,null,{"$f":"IF(ISBLANK(E124),\"\", PRODUCT(C124,E124)+PRODUCT(C124,E124,F111))","v":522.55224999999996},"Stilius"]
["2.1.15.","S11: Nacionaliniame mėnesiniame verslo, politikos ir kultūros žurnale už žurnalo puslapį 210x280 mm, straipsnį pateikia klientas",3,"Vnt.",1080,null,{"$f":"IF(ISBLANK(E125),\"\", PRODUCT(C125,E125)+PRODUCT(C125,E125,F111))","v":3240.3240000000001},"IQ"]
["2.1.16.","S12: Nacionaliniame savaitraštyje Vidinis puslapis, straipsnį parengia leidinys",1,"Vnt.",435,null,{"$f":"IF(ISBLANK(E126),\"\", PRODUCT(C126,E126)+PRODUCT(C126,E126,F111))","v":435.04349999999999},"prie kavos"]
["2.1.17.","S12: Nacionaliniame savaitraštyje 1/2 puslapio, straipsnį parengia leidinys",1,"Vnt.",270,null,{"$f":"IF(ISBLANK(E127),\"\", PRODUCT(C127,E127)+PRODUCT(C127,E127,F111))","v":270.02699999999999},"prie kavos"]
["2.2.","Įvaizdinė (maketuota) reklama nacionaliniai dienraščiai, savaitraščiai, laikraščiai, žurnalai"]
["2.2.1.","S1: Mėnesiniame kultūros ir meno žurnale, vaizdinė reklama ant žurnalo viršelių.",5,"Vnt.",300,null,{"$f":"IF(ISBLANK(E129),\"\", PRODUCT(C129,E129)+PRODUCT(C129,E129,F111))","v":1500.15},"Nemunas"]
["2.2.2.","S1: Mėnesiniame kultūros ir meno žurnale, vaizdinė reklama žurnalo vidiniuose puslapiuose, puslapio apimties reklama.",5,"Vnt.",100,null,{"$f":"IF(ISBLANK(E130),\"\", PRODUCT(C130,E130)+PRODUCT(C130,E130,F111))","v":500.05},"Nemunas"]
["2.2.3.","S2: Nacionaliniame verslo informaciją ir žinias skleidžiančiame savaitraštyje, spalvotai vidiniai savaitraščio puslapiai, dydis 126 x 88 mm",1,"Vnt.",288.56,null,{"$f":"IF(ISBLANK(E131),\"\", PRODUCT(C131,E131)+PRODUCT(C131,E131,F111))","v":288.58885600000002},"Verslo žinios"]
["2.2.4.","S2: Nacionaliniame verslo informaciją ir žinias skleidžiančiame savaitraštyje, spalvotai vidiniai savaitraščio puslapiai, dydis 254 x 178 mm",1,"Vnt.",1154.25,null,{"$f":"IF(ISBLANK(E132),\"\", PRODUCT(C132,E132)+PRODUCT(C132,E132,F111))","v":1154.365425},"Verslo žinios"]
["2.2.5.","S2: Nacionaliniame verslo informaciją ir žinias skleidžiančiame savaitraštyje, spalvotai vidiniai savaitraščio puslapiai, dydis 254 x 390 mm",1,"Vnt.",2315.63,null,{"$f":"IF(ISBLANK(E133),\"\", PRODUCT(C133,E133)+PRODUCT(C133,E133,F111))","v":2315.8615629999999},"Verslo žinios"]
["2.2.6.","S3: Kauno regiono dienraštyje darbo dienomis: 1 puslapio apimties maketuota reklama",15,"Vnt.",150,null,{"$f":"IF(ISBLANK(E134),\"\", PRODUCT(C134,E134)+PRODUCT(C134,E134,F111))","v":2250.2249999999999},"Kauno diena"]
["2.2.7.","S3: Kauno regiono dienraštyje nedarbo dienomis: 1 puslapio apimties maketuota reklama",15,"Vnt.",150,null,{"$f":"IF(ISBLANK(E135),\"\", PRODUCT(C135,E135)+PRODUCT(C135,E135,F111))","v":2250.2249999999999},"Kauno diena"]
["2.2.8.","S3: Kauno regiono dienraštyje darbo dienomis: 1/2 puslapio apimties maketuota reklama",10,"Vnt.",100,null,{"$f":"IF(ISBLANK(E136),\"\", PRODUCT(C136,E136)+PRODUCT(C136,E136,F111))","v":1000.1},"Kauno diena"]
["2.2.9.","S3: Kauno regiono dienraštyje nedarbo dienomis: 1/2 puslapio apimties maketuota reklama",10,"Vnt.",100,null,{"$f":"IF(ISBLANK(E137),\"\", PRODUCT(C137,E137)+PRODUCT(C137,E137,F111))","v":1000.1},"Kauno diena"]
["2.2.10.","S4: Nacionaliniame savaitraštyje dydis: 205 x 285 mm",3,"Vnt.",1400,null,{"$f":"IF(ISBLANK(E138),\"\", PRODUCT(C138,E138)+PRODUCT(C138,E138,F111))","v":4200.42},"Savaitė"]
["2.2.11.","S4: Nacionaliniame savaitraštyje dydis: 205 x 140 mm",2,"Vnt.",770,null,{"$f":"IF(ISBLANK(E139),\"\", PRODUCT(C139,E139)+PRODUCT(C139,E139,F111))","v":1540.154},"Savaitė"]
["2.2.12.","S4: Nacionaliniame savaitraštyje dydis: 205 x 70 mm",2,"Vnt.",420,null,{"$f":"IF(ISBLANK(E140),\"\", PRODUCT(C140,E140)+PRODUCT(C140,E140,F111))","v":840.08399999999995},"Savaitė"]
["2.2.13.","S5: Nacionaliniame mėnesiniame miesto kultūros žurnale, III viršelis",1,"Vnt.",250,null,{"$f":"IF(ISBLANK(E141),\"\", PRODUCT(C141,E141)+PRODUCT(C141,E141,F111))","v":250.02500000000001},370]
["2.2.14.","S5: Nacionaliniame mėnesiniame miesto kultūros žurnale, Vidinis puslapis",2,"Vnt.",200,null,{"$f":"IF(ISBLANK(E142),\"\", PRODUCT(C142,E142)+PRODUCT(C142,E142,F111))","v":400.04},370]
["2.2.15.","S5: Nacionaliniame mėnesiniame miesto kultūros žurnale, Pusė puslapio",2,"Vnt.",150,null,{"$f":"IF(ISBLANK(E143),\"\", PRODUCT(C143,E143)+PRODUCT(C143,E143,F111))","v":300.02999999999997},370]
["2.2.16.","S6: Nacionaliniame kultūros ir meno skaitmeniniame ir spausdintame žurnale-albume, apimtis 1 puslapis",2,"Vnt.",750,null,{"$f":"IF(ISBLANK(E144),\"\", PRODUCT(C144,E144)+PRODUCT(C144,E144,F111))","v":1500.15},"Lamų slėnis"]
["2.2.17.","S6: Nacionaliniame kultūros ir meno skaitmeniniame ir spausdintame žurnale-albume, apimtis 1/2 puslapio",1,"Vnt.",520,null,{"$f":"IF(ISBLANK(E145),\"\", PRODUCT(C145,E145)+PRODUCT(C145,E145,F111))","v":520.05200000000002},"Lamų slėnis"]
["2.2.18.","S7: Nacionaliniame kultūros ir meno ketvirtiniame žurnale, III viršelis",3,"Vnt.",420,null,{"$f":"IF(ISBLANK(E146),\"\", PRODUCT(C146,E146)+PRODUCT(C146,E146,F111))","v":1260.126},"Happy365"]
["2.2.19.","S7: Nacionaliniame kultūros ir meno ketvirtiniame žurnale, vidinis puslapis",2,"Vnt.",480,null,{"$f":"IF(ISBLANK(E147),\"\", PRODUCT(C147,E147)+PRODUCT(C147,E147,F111))","v":960.096},"Happy365"]
["2.2.20.","S7: Nacionaliniame kultūros ir meno ketvirtiniame žurnale, pusė puslapio",1,"Vnt.",300,null,{"$f":"IF(ISBLANK(E148),\"\", PRODUCT(C148,E148)+PRODUCT(C148,E148,F111))","v":300.02999999999997},"Happy365"]
["2.2.21.","S7: Nacionaliniame kultūros ir meno ketvirtiniame žurnale, ketvirtis puslapio",1,"Vnt.",180,null,{"$f":"IF(ISBLANK(E149),\"\", PRODUCT(C149,E149)+PRODUCT(C149,E149,F111))","v":180.018},"Happy365"]
["2.2.22.","S8: Nacionaliniame dienraštyje darbo dieną, I psl. Reklama, dydis: 4,8 cm x 6 cm",5,"Vnt.",60,null,{"$f":"IF(ISBLANK(E150),\"\", PRODUCT(C150,E150)+PRODUCT(C150,E150,F111))","v":300.02999999999997},"Lietuvos rytas"]
["2.2.23.","S8: Nacionaliniame dienraštyje šeštadienį, I psl. reklama, dydis: 4,8 cm x 6 cm",5,"Vnt.",80,null,{"$f":"IF(ISBLANK(E151),\"\", PRODUCT(C151,E151)+PRODUCT(C151,E151,F111))","v":400.04},"Lietuvos rytas"]
["2.2.24.","S8: Nacionaliniame dienraštyje darbo dieną, I psl. reklama, dydis: 14,4 cm x 8,3 cm",5,"Vnt.",150,null,{"$f":"IF(ISBLANK(E152),\"\", PRODUCT(C152,E152)+PRODUCT(C152,E152,F111))","v":750.07500000000005},"Lietuvos rytas"]
["2.2.25.","S8: Nacionaliniame dienraštyje šeštadienį, I psl. reklama, dydis: 14,4 cm x 8,3 cm",5,"Vnt.",250,null,{"$f":"IF(ISBLANK(E153),\"\", PRODUCT(C153,E153)+PRODUCT(C153,E153,F111))","v":1250.125},"Lietuvos rytas"]
["2.2.26.","S9: Nacionaliniame savaitgaliniame gyvenimo būdo žurnale III viršelis",2,"Vnt.",750,null,{"$f":"IF(ISBLANK(E154),\"\", PRODUCT(C154,E154)+PRODUCT(C154,E154,F111))","v":1500.15},"Savaitgalis"]
["2.2.27.","S9: Nacionaliniame savaitgaliniame gyvenimo būdo žurnale 1/3 psl.",2,"Vnt.",300,null,{"$f":"IF(ISBLANK(E155),\"\", PRODUCT(C155,E155)+PRODUCT(C155,E155,F111))","v":600.05999999999995},"Savaitgalis"]
["2.2.28.","S9: Nacionaliniame savaitgaliniame gyvenimo būdo žurnale 1/2 psl.",4,"Vnt.",450,null,{"$f":"IF(ISBLANK(E156),\"\", PRODUCT(C156,E156)+PRODUCT(C156,E156,F111))","v":1800.18},"Savaitgalis"]
["2.2.29.","S9: Nacionaliniame savaitgaliniame gyvenimo būdo žurnale puslapis",1,"Vnt.",750,null,{"$f":"IF(ISBLANK(E157),\"\", PRODUCT(C157,E157)+PRODUCT(C157,E157,F111))","v":750.07500000000005},"Savaitgalis"]
["2.2.30.","S10: Nacionaliniame savaitiniame žurnale II viršelis",2,"Vnt.",440,null,{"$f":"IF(ISBLANK(E158),\"\", PRODUCT(C158,E158)+PRODUCT(C158,E158,F111))","v":880.08799999999997},"Stilius"]
["2.2.31.","S10: Nacionaliniame savaitiniame žurnale 1/4 psl.",2,"Vnt.",132,null,{"$f":"IF(ISBLANK(E159),\"\", PRODUCT(C159,E159)+PRODUCT(C159,E159,F111))","v":264.02640000000002},"Stilius"]
["2.2.32.","S10: Nacionaliniame savaitiniame žurnale 1/3 psl.",1,"Vnt.",198,null,{"$f":"IF(ISBLANK(E160),\"\", PRODUCT(C160,E160)+PRODUCT(C160,E160,F111))","v":198.0198},"Stilius"]
["2.2.33.","S10: Nacionaliniame savaitiniame žurnale 1/2 psl.",2,"Vnt.",220,null,{"$f":"IF(ISBLANK(E161),\"\", PRODUCT(C161,E161)+PRODUCT(C161,E161,F111))","v":440.04399999999998},"Stilius"]
["2.2.34.","S10: Nacionaliniame savaitiniame žurnale puslapis",2,"Vnt.",422.4,null,{"$f":"IF(ISBLANK(E162),\"\", PRODUCT(C162,E162)+PRODUCT(C162,E162,F111))","v":844.88447999999994},"Stilius"]
["2.2.35.","S11: Nacionaliniame mėnesiniame verslo, politikos ir kultūros žurnale už žurnalo puslapį 210x280 mm",5,"Vnt.",1080,null,{"$f":"IF(ISBLANK(E163),\"\", PRODUCT(C163,E163)+PRODUCT(C163,E163,F111))","v":5400.54},"IQ"]
["2.2.36.","S12: Nacionaliniame savaitraštyje II viršelis",2,"Vnt.",440,null,{"$f":"IF(ISBLANK(E164),\"\", PRODUCT(C164,E164)+PRODUCT(C164,E164,F111))","v":880.08799999999997},"prie kavos"]
["2.2.37.","S12: Nacionaliniame savaitraštyje Vidinis puslapis",2,"Vnt.",385,null,{"$f":"IF(ISBLANK(E165),\"\", PRODUCT(C165,E165)+PRODUCT(C165,E165,F111))","v":770.077},"prie kavos"]
["2.2.38.","S12: Nacionaliniame savaitraštyje 1/2 puslapio",1,"Vnt.",220,null,{"$f":"IF(ISBLANK(E166),\"\", PRODUCT(C166,E166)+PRODUCT(C166,E166,F111))","v":220.02199999999999},"prie kavos"]
["2.2.39.","S13: Klaipėdos regiono dienraštyje darbo dienomis: 1 puslapio apimties maketuota reklama",4,"Vnt.",150,null,{"$f":"IF(ISBLANK(E167),\"\", PRODUCT(C167,E167)+PRODUCT(C167,E167,F111))","v":600.05999999999995},"Klaipėda"]
["2.2.40.","S13: Klaipėdos regiono dienraštyje nedarbo dienomis: 1 puslapio apimties maketuota reklama",4,"Vnt.",150,null,{"$f":"IF(ISBLANK(E168),\"\", PRODUCT(C168,E168)+PRODUCT(C168,E168,F111))","v":600.05999999999995},"Klaipėda"]
["2.2.41.","S13: Klaipėdos regiono dienraštyje darbo dienomis: 1/2 puslapio apimties maketuota reklama",2,"Vnt.",100,null,{"$f":"IF(ISBLANK(E169),\"\", PRODUCT(C169,E169)+PRODUCT(C169,E169,F111))","v":200.02},"Klaipėda"]
["2.2.42.","S13: Klaipėdos regiono dienraštyje nedarbo dienomis: 1/2 puslapio apimties maketuota reklama",2,"Vnt.",100,null,{"$f":"IF(ISBLANK(E170),\"\", PRODUCT(C170,E170)+PRODUCT(C170,E170,F111))","v":200.02},"Klaipėda"]
[null,null,null,null,"Palyginamoji pasiūlymo kaina be PVM",null,{"$f":"IF((COUNT(C111:C170)<>COUNT(G111:G170)),\"\", SUM(G111:G170))","v":62930.532423999983},{"$f":"IF((COUNT(C111:C170)<>COUNT(G111:G170)),\"Neužpildytos visų objektų kainos\", \"\")","v":""}]
[null,null,null,null,"PVM suma",null,{"$f":"G171*0.21","v":13215.411809039995}]
[null,null,null,null,"Palyginamoji pasiūlymo kaina su PVM",null,{"$f":"IF(ISBLANK(G172), \"\", SUM(G171:G172))","v":76145.944233039976}]
[]
[]
[]
["3. DALIS","REKLAMA RADIJUJE"]
[]
["Tiekėjo pasiūlymas:"]
["Nr.","Pavadinimas","Preliminati apimtis","Mato vienetas","Vieneto įkainis be PVM, Eur","Administravimo procentas (%)","Suma be PVM, Eur","Radijo stoties pavadinimas"]
["3.","Reklama radijuje"]
["3.1.","Radijo stotis, kurios dienos pasiekiamumas pagal Kantar TNS 2020 rudens – žiemos (2020.09.01 -2021.02.28) tyrimo duomenis ne mažesnis nei 13 % ir ne didesnis nei 13,9 %"]
["3.1.1.","[Radijo stotis Nr. 1]  Radijo stotis, kurios dienos pasiekiamumas pagal Kantar TNS 2020 rudens – žiemos (2020.09.01 -2021.02.28) tyrimo duomenis ne mažesnis nei 13 % ir ne didesnis nei 13,9 %",200,"iki 15 sek.",93.93,1E-4,{"$f":"IF(ISBLANK(E183),\"\", PRODUCT(C183,E183)+PRODUCT(C183,E183,F183))","v":18787.8786},"M-1"]
["3.1.1.1.","A laiko juosta"]
["3.1.2.","[Radijo stotis Nr. 1]  Radijo stotis, kurios dienos pasiekiamumas pagal Kantar TNS 2020 rudens – žiemos (2020.09.01 -2021.02.28) tyrimo duomenis ne mažesnis nei 13 % ir ne didesnis nei 13,9 %",50,"iki 30 sek.",101.66,null,{"$f":"IF(ISBLANK(E185),\"\", PRODUCT(C185,E185)+PRODUCT(C185,E185,F183))","v":5083.5083000000004},"M-1"]
["3.1.2.1.","A laiko juosta"]
["3.1.3.","[Radijo stotis Nr. 1] Radijo stotis, kurios dienos pasiekiamumas pagal Kantar TNS 2020 rudens – žiemos (2020.09.01 -2021.02.28) tyrimo duomenis ne mažesnis nei 13 % ir ne didesnis nei 13,9 %",200,"iki 15 sek.",39.78,null,{"$f":"IF(ISBLANK(E187),\"\", PRODUCT(C187,E187)+PRODUCT(C187,E187,F183))","v":7956.7956000000004},"M-1"]
["3.1.3.1.","B laiko juosta"]
["3.1.4.","[Radijo stotis Nr. 1] Radijo stotis, kurios dienos pasiekiamumas pagal Kantar TNS 2020 rudens – žiemos (2020.09.01 -2021.02.28) tyrimo duomenis ne mažesnis nei 13 % ir ne didesnis nei 13,9 %",50,"iki 30 sek.",57.46,null,{"$f":"IF(ISBLANK(E189),\"\", PRODUCT(C189,E189)+PRODUCT(C189,E189,F183))","v":2873.2873},"M-1"]
["3.1.4.1.","B laiko juosta"]
["3.1.5.","[Radijo stotis Nr. 1] Radijo stotis, kurios dienos pasiekiamumas pagal Kantar TNS 2020 rudens – žiemos (2020.09.01 -2021.02.28) tyrimo duomenis ne mažesnis nei 13 % ir ne didesnis nei 13,9 %",200,"iki 15 sek.",30.94,null,{"$f":"IF(ISBLANK(E191),\"\", PRODUCT(C191,E191)+PRODUCT(C191,E191,F183))","v":6188.6188000000002},"M-1"]
["3.1.5.1.","C laiko juosta"]
["3.1.6.","[Radijo stotis Nr. 1] Radijo stotis, kurios dienos pasiekiamumas pagal Kantar TNS 2020 rudens – žiemos (2020.09.01 -2021.02.28) tyrimo duomenis ne mažesnis nei 13 % ir ne didesnis nei 13,9 %",50,"iki 30 sek.",44.2,null,{"$f":"IF(ISBLANK(E193),\"\", PRODUCT(C193,E193)+PRODUCT(C193,E193,F183))","v":2210.221},"M-1"]
["3.1.6.1.","C laiko juosta"]
["3.1.7.","[Radijo stotis Nr. 1] Radijo stotis, kurios dienos pasiekiamumas pagal Kantar TNS 2020 rudens – žiemos (2020.09.01 -2021.02.28) tyrimo duomenis ne mažesnis nei 13 % ir ne didesnis nei 13,9 %",200,"iki 15 sek.",18.559999999999999,null,{"$f":"IF(ISBLANK(E195),\"\", PRODUCT(C195,E195)+PRODUCT(C195,E195,F183))","v":3712.3711999999996},"M-1"]
["3.1.7.1.","D laiko juosta"]
["3.1.8.","[Radijo stotis Nr. 1] Radijo stotis, kurios dienos pasiekiamumas pagal Kantar TNS 2020 rudens – žiemos (2020.09.01 -2021.02.28) tyrimo duomenis ne mažesnis nei 13 % ir ne didesnis nei 13,9 %",50,"iki 30 sek.",26.52,null,{"$f":"IF(ISBLANK(E197),\"\", PRODUCT(C197,E197)+PRODUCT(C197,E197,F183))","v":1326.1325999999999},"M-1"]
["3.1.8.1.","D laiko juosta"]
["3.2.","Radijo stotis, kurios dienos pasiekiamumas pagal Kantar TNS 2020 rudens – žiemos (2020.09.01 -2021.02.28) tyrimo duomenis ne mažesnis nei 10,9 % ir ne didesnis nei 11,9 %"]
["3.2.1.","[Radijo stotis Nr. 2] Radijo stotis, kurios dienos pasiekiamumas pagal Kantar TNS 2020 rudens – žiemos (2020.09.01 -2021.02.28) tyrimo duomenis ne mažesnis nei 10,9 % ir ne didesnis nei 11,9 %",50,"iki 15 sek.",28.73,null,{"$f":"IF(ISBLANK(E200),\"\", PRODUCT(C200,E200)+PRODUCT(C200,E200,F183))","v":1436.64365},"Lietus"]
["3.2.1.1.","A laiko juosta"]
["3.2.2.","[Radijo stotis Nr. 2] Radijo stotis, kurios dienos pasiekiamumas pagal Kantar TNS 2020 rudens – žiemos (2020.09.01 -2021.02.28) tyrimo duomenis ne mažesnis nei 10,9 % ir ne didesnis nei 11,9 %",10,"iki 30 sek.",39.78,null,{"$f":"IF(ISBLANK(E202),\"\", PRODUCT(C202,E202)+PRODUCT(C202,E202,F183))","v":397.83978000000002},"Lietus"]
["3.2.2.1.","A laiko juosta"]
["3.2.3.","[Radijo stotis Nr. 2] Radijo stotis, kurios dienos pasiekiamumas pagal Kantar TNS 2020 rudens – žiemos (2020.09.01 -2021.02.28) tyrimo duomenis ne mažesnis nei 10,9 % ir ne didesnis nei 11,9 %",50,"iki 15 sek.",26.52,null,{"$f":"IF(ISBLANK(E204),\"\", PRODUCT(C204,E204)+PRODUCT(C204,E204,F183))","v":1326.1325999999999},"Lietus"]
["3.2.3.1.","B laiko juosta"]
["3.2.4.","[Radijo stotis Nr. 2] Radijo stotis, kurios dienos pasiekiamumas pagal Kantar TNS 2020 rudens – žiemos (2020.09.01 -2021.02.28) tyrimo duomenis ne mažesnis nei 10,9 % ir ne didesnis nei 11,9 %",10,"iki 30 sek.",37.57,null,{"$f":"IF(ISBLANK(E206),\"\", PRODUCT(C206,E206)+PRODUCT(C206,E206,F183))","v":375.73757000000001},"Lietus"]
["3.2.4.1.","B laiko juosta"]
["3.2.5.","[Radijo stotis Nr. 2] Radijo stotis, kurios dienos pasiekiamumas pagal Kantar TNS 2020 rudens – žiemos (2020.09.01 -2021.02.28) tyrimo duomenis ne mažesnis nei 10,9 % ir ne didesnis nei 11,9 %",50,"iki 15 sek.",24.31,null,{"$f":"IF(ISBLANK(E208),\"\", PRODUCT(C208,E208)+PRODUCT(C208,E208,F183))","v":1215.6215500000001},"Lietus"]
["3.2.5.1.","C laiko juosta"]
["3.2.6.","[Radijo stotis Nr. 2] Radijo stotis, kurios dienos pasiekiamumas pagal Kantar TNS 2020 rudens – žiemos (2020.09.01 -2021.02.28) tyrimo duomenis ne mažesnis nei 10,9 % ir ne didesnis nei 11,9 %",10,"iki 30 sek.",33.15,null,{"$f":"IF(ISBLANK(E210),\"\", PRODUCT(C210,E210)+PRODUCT(C210,E210,F183))","v":331.53314999999998},"Lietus"]
["3.2.6.1.","C laiko juosta"]
["3.2.7.","[Radijo stotis Nr. 2] Radijo stotis, kurios dienos pasiekiamumas pagal Kantar TNS 2020 rudens – žiemos (2020.09.01 -2021.02.28) tyrimo duomenis ne mažesnis nei 10,9 % ir ne didesnis nei 11,9 %",50,"iki 15 sek.",19.34,null,{"$f":"IF(ISBLANK(E212),\"\", PRODUCT(C212,E212)+PRODUCT(C212,E212,F183))","v":967.09670000000006},"Lietus"]
["3.2.7.1.","D laiko juosta"]
["3.2.8.","[Radijo stotis Nr. 2] Radijo stotis, kurios dienos pasiekiamumas pagal Kantar TNS 2020 rudens – žiemos (2020.09.01 -2021.02.28) tyrimo duomenis ne mažesnis nei 10,9 % ir ne didesnis nei 11,9 %",10,"iki 30 sek.",27.63,null,{"$f":"IF(ISBLANK(E214),\"\", PRODUCT(C214,E214)+PRODUCT(C214,E214,F183))","v":276.32763},"Lietus"]
["3.2.8.1.","D laiko juosta"]
["3.3.","Radijo stotis, kurios dienos pasiekiamumas pagal Kantar TNS 2020 rudens – žiemos (2020.09.01 -2021.02.28) tyrimo duomenis ne mažesnis nei 9 % ir ne didesnis nei 9,2 %"]
["3.3.1.","[Radijo stotis Nr. 3] Radijo stotis, kurios dienos pasiekiamumas pagal Kantar TNS 2020 rudens – žiemos (2020.09.01 -2021.02.28) tyrimo duomenis ne mažesnis nei 9 % ir ne didesnis nei 9,2 %",150,"iki 15 sek.",19.600000000000001,null,{"$f":"IF(ISBLANK(E217),\"\", PRODUCT(C217,E217)+PRODUCT(C217,E217,F183))","v":2940.2939999999999},"Radiocentras"]
["3.3.1.1.","T1 laiko juosta"]
["3.3.2.","[Radijo stotis Nr. 3] Radijo stotis, kurios dienos pasiekiamumas pagal Kantar TNS 2020 rudens – žiemos (2020.09.01 -2021.02.28) tyrimo duomenis ne mažesnis nei 9 % ir ne didesnis nei 9,2 %",50,"iki 30 sek.",30.8,null,{"$f":"IF(ISBLANK(E219),\"\", PRODUCT(C219,E219)+PRODUCT(C219,E219,F183))","v":1540.154},"Radiocentras"]
["3.3.2.1.","T1 laiko juosta"]
["3.3.3.","[Radijo stotis Nr. 3] Radijo stotis, kurios dienos pasiekiamumas pagal Kantar TNS 2020 rudens – žiemos (2020.09.01 -2021.02.28) tyrimo duomenis ne mažesnis nei 9 % ir ne didesnis nei 9,2 %",150,"iki 15 sek.",16.8,null,{"$f":"IF(ISBLANK(E221),\"\", PRODUCT(C221,E221)+PRODUCT(C221,E221,F183))","v":2520.252},"Radiocentras"]
["3.3.3.1.","T2 laiko juosta"]
["3.3.4.","[Radijo stotis Nr. 3] Radijo stotis, kurios dienos pasiekiamumas pagal Kantar TNS 2020 rudens – žiemos (2020.09.01 -2021.02.28) tyrimo duomenis ne mažesnis nei 9 % ir ne didesnis nei 9,2 %",50,"iki 30 sek.",25.2,null,{"$f":"IF(ISBLANK(E223),\"\", PRODUCT(C223,E223)+PRODUCT(C223,E223,F183))","v":1260.126},"Radiocentras"]
["3.3.4.1.","T2 laiko juosta"]
["3.3.5.","[Radijo stotis Nr. 3] Radijo stotis, kurios dienos pasiekiamumas pagal Kantar TNS 2020 rudens – žiemos (2020.09.01 -2021.02.28) tyrimo duomenis ne mažesnis nei 9 % ir ne didesnis nei 9,2 %",150,"iki 15 sek.",7.84,null,{"$f":"IF(ISBLANK(E225),\"\", PRODUCT(C225,E225)+PRODUCT(C225,E225,F183))","v":1176.1176},"Radiocentras"]
["3.3.5.1.","T3 laiko juosta"]
["3.3.6.","[Radijo stotis Nr. 3] Radijo stotis, kurios dienos pasiekiamumas pagal Kantar TNS 2020 rudens – žiemos (2020.09.01 -2021.02.28) tyrimo duomenis ne mažesnis nei 9 % ir ne didesnis nei 9,2 %",50,"iki 30 sek.",11.200000000000001,null,{"$f":"IF(ISBLANK(E227),\"\", PRODUCT(C227,E227)+PRODUCT(C227,E227,F183))","v":560.05600000000004},"Radiocentras"]
["3.3.6.1.","T3 laiko juosta"]
["3.4.","Radijo stotis, kurios dienos pasiekiamumas pagal Kantar TNS 2020 rudens – žiemos (2020.09.01 -2021.02.28) tyrimo duomenis ne mažesnis nei 3,3 % ir ne didesnis nei 4,3 %."]
["3.4.1.","[Radijo stotis Nr. 4] Radijo stotis, kurios dienos pasiekiamumas pagal Kantar TNS 2020 rudens – žiemos (2020.09.01 -2021.02.28) tyrimo duomenis ne mažesnis nei 3,3 % ir ne didesnis nei 4,3 %.",50,"iki 15 sek.",27.625,null,{"$f":"IF(ISBLANK(E230),\"\", PRODUCT(C230,E230)+PRODUCT(C230,E230,F183))","v":1381.3881249999999},"M-1 Plius"]
["3.4.1.1.","A laiko juosta"]
["3.4.2.","[Radijo stotis Nr. 4] Radijo stotis, kurios dienos pasiekiamumas pagal Kantar TNS 2020 rudens – žiemos (2020.09.01 -2021.02.28) tyrimo duomenis ne mažesnis nei 3,3 % ir ne didesnis nei 4,3 %.",10,"iki 30 sek.",38.674999999999997,null,{"$f":"IF(ISBLANK(E232),\"\", PRODUCT(C232,E232)+PRODUCT(C232,E232,F183))","v":386.78867500000001},"M-1 Plius"]
["3.4.2.1.","A laiko juosta"]
["3.4.3.","[Radijo stotis Nr. 4] Radijo stotis, kurios dienos pasiekiamumas pagal Kantar TNS 2020 rudens – žiemos (2020.09.01 -2021.02.28) tyrimo duomenis ne mažesnis nei 3,3 % ir ne didesnis nei 4,3 %.  ",50,"iki 15 sek.",22.1,null,{"$f":"IF(ISBLANK(E234),\"\", PRODUCT(C234,E234)+PRODUCT(C234,E234,F183))","v":1105.1105},"M-1 Plius"]
["3.4.3.1.","B laiko juosta"]
["3.4.4.","[Radijo stotis Nr. 4] Radijo stotis, kurios dienos pasiekiamumas pagal Kantar TNS 2020 rudens – žiemos (2020.09.01 -2021.02.28) tyrimo duomenis ne mažesnis nei 3,3 % ir ne didesnis nei 4,3 %. ",10,"iki 30 sek.",33.15,null,{"$f":"IF(ISBLANK(E236),\"\", PRODUCT(C236,E236)+PRODUCT(C236,E236,F183))","v":331.53314999999998},"M-1 Plius"]
["3.4.4.1.","B laiko juosta"]
["3.4.5.","[Radijo stotis Nr. 4] Radijo stotis, kurios dienos pasiekiamumas pagal Kantar TNS 2020 rudens – žiemos (2020.09.01 -2021.02.28) tyrimo duomenis ne mažesnis nei 3,3 % ir ne didesnis nei 4,3 %. ",50,"iki 15 sek.",19.337499999999999,null,{"$f":"IF(ISBLANK(E238),\"\", PRODUCT(C238,E238)+PRODUCT(C238,E238,F183))","v":966.97168749999992},"M-1 Plius"]
["3.4.5.1.","C laiko juosta"]
["3.4.6.","[Radijo stotis Nr. 4] Radijo stotis, kurios dienos pasiekiamumas pagal Kantar TNS 2020 rudens – žiemos (2020.09.01 -2021.02.28) tyrimo duomenis ne mažesnis nei 3,3 % ir ne didesnis nei 4,3 %.",10,"iki 30 sek.",27.625,null,{"$f":"IF(ISBLANK(E240),\"\", PRODUCT(C240,E240)+PRODUCT(C240,E240,F183))","v":276.277625},"M-1 Plius"]
["3.4.6.1.","C laiko juosta"]
["3.4.7.","[Radijo stotis Nr. 4] Radijo stotis, kurios dienos pasiekiamumas pagal Kantar TNS 2020 rudens – žiemos (2020.09.01 -2021.02.28) tyrimo duomenis ne mažesnis nei 3,3 % ir ne didesnis nei 4,3 %.",50,"iki 15 sek.",11.05,null,{"$f":"IF(ISBLANK(E242),\"\", PRODUCT(C242,E242)+PRODUCT(C242,E242,F183))","v":552.55525},"M-1 Plius"]
["3.4.7.1.","D laiko juosta"]
["3.4.8.","[Radijo stotis Nr. 4] Radijo stotis, kurios dienos pasiekiamumas pagal Kantar TNS 2020 rudens – žiemos (2020.09.01 -2021.02.28) tyrimo duomenis ne mažesnis nei 3,3 % ir ne didesnis nei 4,3 %.",10,"iki 30 sek.",16.574999999999999,null,{"$f":"IF(ISBLANK(E244),\"\", PRODUCT(C244,E244)+PRODUCT(C244,E244,F183))","v":165.76657499999999},"M-1 Plius"]
["3.4.8.1.","D laiko juosta"]
["3.5.","Radijo stotis, kurios dienos pasiekiamumas pagal Kantar TNS 2020 rudens – žiemos (2020.09.01 -2021.02.28) tyrimo duomenis ne mažesnis nei 1,9 % ir ne didesnis nei 2,9 %."]
["3.5.1.","[Radijo stotis Nr. 5] Radijo stotis, kurios dienos pasiekiamumas pagal Kantar TNS 2020 rudens – žiemos (2020.09.01 -2021.02.28) tyrimo duomenis ne mažesnis nei 1,9 % ir ne didesnis nei 2,9 %.",50,"iki 15 sek.",12.75,null,{"$f":"IF(ISBLANK(E247),\"\", PRODUCT(C247,E247)+PRODUCT(C247,E247,F183))","v":637.56375000000003},"Žinių radijas"]
["3.5.1.1.","A1"]
["3.5.2.","[Radijo stotis Nr. 5] Radijo stotis, kurios dienos pasiekiamumas pagal Kantar TNS 2020 rudens – žiemos (2020.09.01 -2021.02.28) tyrimo duomenis ne mažesnis nei 1,9 % ir ne didesnis nei 2,9 %.",10,"iki 30 sek.",22.95,null,{"$f":"IF(ISBLANK(E249),\"\", PRODUCT(C249,E249)+PRODUCT(C249,E249,F183))","v":229.52295000000001},"Žinių radijas"]
["3.5.2.1.","A1"]
["3.5.3.","[Radijo stotis Nr. 5] Radijo stotis, kurios dienos pasiekiamumas pagal Kantar TNS 2020 rudens – žiemos (2020.09.01 -2021.02.28) tyrimo duomenis ne mažesnis nei 1,9 % ir ne didesnis nei 2,9 %.",50,"iki 15 sek.",9.35,null,{"$f":"IF(ISBLANK(E251),\"\", PRODUCT(C251,E251)+PRODUCT(C251,E251,F183))","v":467.54674999999997},"Žinių radijas"]
["3.5.3.1.","A"]
["3.5.4.","[Radijo stotis Nr. 5] Radijo stotis, kurios dienos pasiekiamumas pagal Kantar TNS 2020 rudens – žiemos (2020.09.01 -2021.02.28) tyrimo duomenis ne mažesnis nei 1,9 % ir ne didesnis nei 2,9 %.",10,"iki 30 sek.",16.149999999999999,null,{"$f":"IF(ISBLANK(E253),\"\", PRODUCT(C253,E253)+PRODUCT(C253,E253,F183))","v":161.51615000000001},"Žinių radijas"]
["3.5.4.1.","A"]
["3.5.5.","[Radijo stotis Nr. 5] Radijo stotis, kurios dienos pasiekiamumas pagal Kantar TNS 2020 rudens – žiemos (2020.09.01 -2021.02.28) tyrimo duomenis ne mažesnis nei 1,9 % ir ne didesnis nei 2,9 %.",50,"iki 15 sek.",5.95,null,{"$f":"IF(ISBLANK(E255),\"\", PRODUCT(C255,E255)+PRODUCT(C255,E255,F183))","v":297.52974999999998},"Žinių radijas"]
["3.5.5.1.","B"]
["3.5.6.","[Radijo stotis Nr. 5] Radijo stotis, kurios dienos pasiekiamumas pagal Kantar TNS 2020 rudens – žiemos (2020.09.01 -2021.02.28) tyrimo duomenis ne mažesnis nei 1,9 % ir ne didesnis nei 2,9 %.",10,"iki 30 sek.",9.35,null,{"$f":"IF(ISBLANK(E257),\"\", PRODUCT(C257,E257)+PRODUCT(C257,E257,F183))","v":93.509349999999998},"Žinių radijas"]
["3.5.6.1.","B"]
["3.6.","Radijo stotis ZIP FM"]
["3.6.1.","Radijo stotis ZIP FM",50,"iki 15 sek.",7.56,null,{"$f":"IF(ISBLANK(E260),\"\", PRODUCT(C260,E260)+PRODUCT(C260,E260,F183))","v":378.0378},"ZIP FM"]
["3.6.1.1.","T1 laiko juosta"]
["3.6.2.","Radijo stotis ZIP FM",10,"iki 30 sek.",9.8000000000000007,null,{"$f":"IF(ISBLANK(E262),\"\", PRODUCT(C262,E262)+PRODUCT(C262,E262,F183))","v":98.009799999999998},"ZIP FM"]
["3.6.2.1.","T1 laiko juosta"]
["3.6.3.","Radijo stotis ZIP FM",50,"iki 15 sek.",7,null,{"$f":"IF(ISBLANK(E264),\"\", PRODUCT(C264,E264)+PRODUCT(C264,E264,F183))","v":350.03500000000003},"ZIP FM"]
["3.6.3.1.","T2 laiko juosta"]
["3.6.4.","Radijo stotis ZIP FM",10,"iki 30 sek.",8.9599999999999991,null,{"$f":"IF(ISBLANK(E266),\"\", PRODUCT(C266,E266)+PRODUCT(C266,E266,F183))","v":89.608959999999996},"ZIP FM"]
["3.6.4.1.","T2 laiko juosta"]
["3.6.5.","Radijo stotis ZIP FM",50,"iki 15 sek.",3.3599999999999994,null,{"$f":"IF(ISBLANK(E268),\"\", PRODUCT(C268,E268)+PRODUCT(C268,E268,F183))","v":168.01679999999996},"ZIP FM"]
["3.6.5.1.","T3 laiko juosta"]
["3.6.6.","Radijo stotis ZIP FM",10,"iki 30 sek.",5.6000000000000005,null,{"$f":"IF(ISBLANK(E270),\"\", PRODUCT(C270,E270)+PRODUCT(C270,E270,F183))","v":56.005600000000008},"ZIP FM"]
["3.6.6.1.","T3 laiko juosta"]
[null,null,null,null,"Palyginamoji pasiūlymo kaina be PVM",null,{"$f":"IF((COUNT(C183:C271)<>COUNT(G183:G271)),\"\", SUM(G183:G271))","v":72656.039877500007},{"$f":"IF((COUNT(C183:C271)<>COUNT(G183:G271)),\"Neužpildytos visų objektų kainos\", \"\")","v":""}]
[null,null,null,null,"PVM suma",null,{"$f":"G272*0.21","v":15257.768374275001}]
[null,null,null,null,"Palyginamoji pasiūlymo kaina su PVM",null,{"$f":"IF(ISBLANK(G273), \"\", SUM(G272:G273))","v":87913.808251775015}]
[]
[]
[]
["4. DALIS","LAUKO REKLAMA"]
[]
["Tiekėjo pasiūlymas:"]
["Nr.","Pavadinimas","Preliminati apimtis","Mato vienetas","Vieneto įkainis be PVM, Eur","Administravimo procentas (%)","Suma be PVM, Eur"]
["4.","Lauko reklama"]
["4.1.","Reklamos plotai: plokštumos transporto laukimo stoginėse Kauno mieste"]
["4.1.1.","Reklama plokštumose transporto laukimo stoginėse Kaune, plakato spauda ir kabinimas (1 plakatas)",250,"vnt",6,1E-4,{"$f":"IF(ISBLANK(E284),\"\", PRODUCT(C284,E284)+PRODUCT(C284,E284,F284))","v":1500.15}]
["4.1.2.","Reklama plokštumose transporto laukimo stoginėse Kaune, plokštumos nuoma (1 plokštuma savaitei)",500,"vnt",34.799999999999997,null,{"$f":"IF(ISBLANK(E285),\"\", PRODUCT(C285,E285)+PRODUCT(C285,E285,F284))","v":17401.740000000002}]
["4.2.","Transporto laukimo paviljonai, vitrinos ir kolonos visoje Lietuvoje"]
["4.2.1.","Reklama plokštumose transporto laukimo paviljonuose ir vitrinose Vilniuje, plakato spauda ir kabinimas (1 plakatas)",1000,"vnt",3.6,null,{"$f":"IF(ISBLANK(E287),\"\", PRODUCT(C287,E287)+PRODUCT(C287,E287,F284))","v":3600.36}]
["4.2.2.","Vilnius, plokštumos nuoma (1 plokštuma savaitei)",800,"vnt",40.299999999999997,null,{"$f":"IF(ISBLANK(E288),\"\", PRODUCT(C288,E288)+PRODUCT(C288,E288,F284))","v":32243.223999999995}]
["4.2.3.","Kaunas ir Klaipėda, plokštumos nuoma (1 plokštuma savaitei)",800,"vnt",37.200000000000003,null,{"$f":"IF(ISBLANK(E289),\"\", PRODUCT(C289,E289)+PRODUCT(C289,E289,F284))","v":29762.976000000002}]
["4.2.4.","Šiauliai, Panevėžys ir Alytus, plokštumos nuoma (1 plokštuma savaitei)",400,"vnt",34.1,null,{"$f":"IF(ISBLANK(E290),\"\", PRODUCT(C290,E290)+PRODUCT(C290,E290,F284))","v":13641.364}]
["4.2.5.","Reklama kolonose Lietuvoje, plakato spauda ir kabinimas (1 plakatas)",150,"vnt",6.5,null,{"$f":"IF(ISBLANK(E291),\"\", PRODUCT(C291,E291)+PRODUCT(C291,E291,F284))","v":975.09749999999997}]
["4.2.6.","Reklama kolonose Lietuvoje, plokštumos nuoma (1 plokštuma savaitei)",300,"vnt",43.4,null,{"$f":"IF(ISBLANK(E292),\"\", PRODUCT(C292,E292)+PRODUCT(C292,E292,F284))","v":13021.302}]
["4.3.","Reklama tripusiuose stovuose Lietuvoje"]
["4.3.1.","Plakato gamybos ir klijavimo darbai visuose miestuose (1 plakatas)",375,"vnt",10,null,{"$f":"IF(ISBLANK(E294),\"\", PRODUCT(C294,E294)+PRODUCT(C294,E294,F284))","v":3750.375}]
["4.3.2.","Vilnius, ploto nuomos kaina (1 tripusis stovas savaitei)",100,"vnt",105,null,{"$f":"IF(ISBLANK(E295),\"\", PRODUCT(C295,E295)+PRODUCT(C295,E295,F284))","v":10501.05}]
["4.3.3.","Kaunas ir Klaipėda, ploto nuomos kaina (1 tripusis stovas savaitei)",100,"vnt",94.5,null,{"$f":"IF(ISBLANK(E296),\"\", PRODUCT(C296,E296)+PRODUCT(C296,E296,F284))","v":9450.9449999999997}]
["4.3.4.","Šiauliai ir Panevėžys, ploto nuomos kaina (1 tripusis stovas savaitei)",50,"vnt",78.75,null,{"$f":"IF(ISBLANK(E297),\"\", PRODUCT(C297,E297)+PRODUCT(C297,E297,F284))","v":3937.8937500000002}]
["4.4.","Didelio formato stendai ir plokštumos Kauno mieste"]
["4.4.1.","Kaune tento gaminimas ir kabinimas, ne mažiau 18 kv/m (1 tentas)",24,"vnt",180,null,{"$f":"IF(ISBLANK(E299),\"\", PRODUCT(C299,E299)+PRODUCT(C299,E299,F284))","v":4320.4319999999998}]
["4.4.2.","Stendo ir plokštumos nuoma, ne mažiau 18 kv/m (1 stendas mėnesiui)",72,"vnt",460,null,{"$f":"IF(ISBLANK(E300),\"\", PRODUCT(C300,E300)+PRODUCT(C300,E300,F284))","v":33123.311999999998}]
["4.4.3.","Kaune tento gaminimas ir kabinimas, ne mažiau 32 kv/m (1 tentas)",3,"vnt",348,null,{"$f":"IF(ISBLANK(E301),\"\", PRODUCT(C301,E301)+PRODUCT(C301,E301,F284))","v":1044.1043999999999}]
["4.4.4.","Stendo ir plokštumos nuoma, ne mažiau 32 kv/m (1 stendas mėnesiui)",12,"vnt",460,null,{"$f":"IF(ISBLANK(E302),\"\", PRODUCT(C302,E302)+PRODUCT(C302,E302,F284))","v":5520.5519999999997}]
["4.4.5.","Kaune tento gaminimas ir kabinimas, ne mažiau 64 kv/m (1 tentas)",4,"vnt",398,null,{"$f":"IF(ISBLANK(E303),\"\", PRODUCT(C303,E303)+PRODUCT(C303,E303,F284))","v":1592.1592000000001}]
["4.4.6.","Stendo ir plokštumos nuoma, ne mažiau 64 kv/m (1 stendas mėnesiui)",18,"vnt",460,null,{"$f":"IF(ISBLANK(E304),\"\", PRODUCT(C304,E304)+PRODUCT(C304,E304,F284))","v":8280.8279999999995}]
["4.5.","Didelio formato lauko stendai prie automagistralės A1 Vilnius – Kaunas – Klaipėda"]
["4.5.1.","Atkarpoje Vilnius-Kaunas, tento gaminimas ir kabinimas, ne mažiau kaip 75 kv/m (1 tentas)",1,"vnt",448,null,{"$f":"IF(ISBLANK(E306),\"\", PRODUCT(C306,E306)+PRODUCT(C306,E306,F284))","v":448.04480000000001}]
["4.5.2.","Stendo nuoma, ne mažiau kaip 75 kv/m (1 stendas mėnesiui)",12,"vnt",455,null,{"$f":"IF(ISBLANK(E307),\"\", PRODUCT(C307,E307)+PRODUCT(C307,E307,F284))","v":5460.5460000000003}]
["4.5.3.","Atkarpoje Kaunas-Klaipėda, tento gaminimas ir kabinimas, ne mažiau kaip 75 kv/m (1 tentas)",1,"vnt",448,null,{"$f":"IF(ISBLANK(E308),\"\", PRODUCT(C308,E308)+PRODUCT(C308,E308,F284))","v":448.04480000000001}]
["4.5.4.","Stendo nuoma, ne mažiau kaip 75 kv/m (1 stendas mėnesiui)",12,"vnt",455,null,{"$f":"IF(ISBLANK(E309),\"\", PRODUCT(C309,E309)+PRODUCT(C309,E309,F284))","v":5460.5460000000003}]
["4.5.5.","Atkarpoje Vilnius-Kaunas, tento gaminimas ir kabinimas, ne mažiau 110 kv/m (1 tentas)",1,"vnt",749,null,{"$f":"IF(ISBLANK(E310),\"\", PRODUCT(C310,E310)+PRODUCT(C310,E310,F284))","v":749.07489999999996}]
["4.5.6.","Stendo nuoma, ne mažiau 110 kv/m (1 stendas mėnesiui)",12,"vnt",665,null,{"$f":"IF(ISBLANK(E311),\"\", PRODUCT(C311,E311)+PRODUCT(C311,E311,F284))","v":7980.7979999999998}]
["4.5.7.","Atkarpoje Kaunas-Klaipėda, tento gaminimas ir kabinimas, ne mažiau 110 kv/m (1 tentas)",1,"vnt",749,null,{"$f":"IF(ISBLANK(E312),\"\", PRODUCT(C312,E312)+PRODUCT(C312,E312,F284))","v":749.07489999999996}]
["4.5.8.","Stendo nuoma, ne mažiau 110 kv/m (1 stendas mėnesiui)",12,"vnt",560,null,{"$f":"IF(ISBLANK(E313),\"\", PRODUCT(C313,E313)+PRODUCT(C313,E313,F284))","v":6720.6719999999996}]
["4.6.","Reklama reklaminiuose lauko stenduose likusioje Lietuvos teritorijoje "]
["4.6.1.","Vilnius, ne mažiau 18 kv/m stendas (1 tentas)",6,"vnt",266,null,{"$f":"IF(ISBLANK(E315),\"\", PRODUCT(C315,E315)+PRODUCT(C315,E315,F284))","v":1596.1596}]
["4.6.2.","Vilniuje stendo ir plokštumos nuoma, ne mažiau 18 kv/m stendas (1 stendas mėnesiui)",18,"vnt",569.79999999999995,null,{"$f":"IF(ISBLANK(E316),\"\", PRODUCT(C316,E316)+PRODUCT(C316,E316,F284))","v":10257.425639999999}]
["4.6.3.","Klaipėda, ne mažiau 18 kv/m stendas (1 tentas)",4,"vnt",266,null,{"$f":"IF(ISBLANK(E317),\"\", PRODUCT(C317,E317)+PRODUCT(C317,E317,F284))","v":1064.1063999999999}]
["4.6.4.","Klaipėdoje stendo ir plokštumos nuoma, ne mažiau 18 kv/m stendas (1 stendas mėnesiui)",12,"vnt",569.79999999999995,null,{"$f":"IF(ISBLANK(E318),\"\", PRODUCT(C318,E318)+PRODUCT(C318,E318,F284))","v":6838.2837599999993}]
["4.6.5.","Panevėžys, ne mažiau 18 kv/m stendas (1 tentas)",2,"vnt",266,null,{"$f":"IF(ISBLANK(E319),\"\", PRODUCT(C319,E319)+PRODUCT(C319,E319,F284))","v":532.05319999999995}]
["4.6.6.","Panevėžyje stendo ir plokštumos nuoma, ne mažiau 18 kv/m stendas (1 stendas mėnesiui)",6,"vnt",499.4,null,{"$f":"IF(ISBLANK(E320),\"\", PRODUCT(C320,E320)+PRODUCT(C320,E320,F284))","v":2996.6996399999998}]
["4.6.7.","Šiauliai, ne mažiau 18 kv/m stendas (1 tentas)",2,"vnt",266,null,{"$f":"IF(ISBLANK(E321),\"\", PRODUCT(C321,E321)+PRODUCT(C321,E321,F284))","v":532.05319999999995}]
["4.6.8.","Šiauliuose stendo ir plokštumos nuoma, ne mažiau 18 kv/m stendas (1 stendas mėnesiui)",6,"vnt",499.4,null,{"$f":"IF(ISBLANK(E322),\"\", PRODUCT(C322,E322)+PRODUCT(C322,E322,F284))","v":2996.6996399999998}]
["4.6.9.","Visi likę miestai, ne mažiau 18 kv/m stendas (1 tentas)",12,"vnt",266,null,{"$f":"IF(ISBLANK(E323),\"\", PRODUCT(C323,E323)+PRODUCT(C323,E323,F284))","v":3192.3191999999999}]
["4.6.10.","Visuose likusiuose miestuose stendo ir plokštumos nuoma, ne mažiau 18 kv/m stendas (1 stendas mėnesiui)",36,"vnt",435.6,null,{"$f":"IF(ISBLANK(E324),\"\", PRODUCT(C324,E324)+PRODUCT(C324,E324,F284))","v":15683.168160000001}]
[null,null,null,null,"Palyginamoji pasiūlymo kaina be PVM",null,{"$f":"IF((COUNT(C284:C324)<>COUNT(G284:G324)),\"\", SUM(G284:G324))","v":267373.63469000004},{"$f":"IF((COUNT(C284:C324)<>COUNT(G284:G324)),\"Neužpildytos visų objektų kainos\", \"\")","v":""}]
[null,null,null,null,"PVM suma",null,{"$f":"G325*0.21","v":56148.463284900005}]
[null,null,null,null,"Palyginamoji pasiūlymo kaina su PVM",null,{"$f":"IF(ISBLANK(G326), \"\", SUM(G325:G326))","v":323522.09797490004}]
[]
[]
[]
["5. DALIS","REKLAMA LAUKO IR VIDAUS EKRANUOSE"]
[]
["Tiekėjo pasiūlymas:"]
["Nr.","Pavadinimas","Preliminati apimtis","Mato vienetas","Vieneto įkainis be PVM, Eur","Administravimo procentas (%)","Suma be PVM, Eur"]
["5.","Reklama lauko ir vidaus ekranuose"]
["5.1.","Reklama skaitmeniniuose lauko ekranuose"]
["5.1.1.","Didieji miestai (Kaunas, Vilnius, Klaipėda, Šiauliai, Panevėžys), 10 sek. klipo trukmė, transliuojama kas antrą valandą (1000 vnt. parodymų)",600,"vnt",35.200000000000003,1E-4,{"$f":"IF(ISBLANK(E337),\"\", PRODUCT(C337,E337)+PRODUCT(C337,E337,F337))","v":21122.112000000001}]
["5.1.2.","Likusi Lietuvos dalis, 10 sek. klipo trukmė, transliuojama kas antrą valandą (1000 vnt. parodymų)",200,"vnt",10,null,{"$f":"IF(ISBLANK(E338),\"\", PRODUCT(C338,E338)+PRODUCT(C338,E338,F337))","v":2000.2}]
["5.2.","Reklama Kauno Žalgirio arenos ekranuose"]
["5.2.1.","LED juosta po ložėm LKL 60 sek.",6,"vnt",105,null,{"$f":"IF(ISBLANK(E340),\"\", PRODUCT(C340,E340)+PRODUCT(C340,E340,F337))","v":630.06299999999999}]
["5.2.2.","LED juosta po ložėm Eurolygoje 60 sek.",6,"vnt",175,null,{"$f":"IF(ISBLANK(E341),\"\", PRODUCT(C341,E341)+PRODUCT(C341,E341,F337))","v":1050.105}]
["5.2.3.","Video kubas LKL 60 sek.",6,"vnt",105,null,{"$f":"IF(ISBLANK(E342),\"\", PRODUCT(C342,E342)+PRODUCT(C342,E342,F337))","v":630.06299999999999}]
["5.2.4.","Video kubas Eurolygoje 60 sek.",6,"vnt",175,null,{"$f":"IF(ISBLANK(E343),\"\", PRODUCT(C343,E343)+PRODUCT(C343,E343,F337))","v":1050.105}]
["5.2.5.","LED ekranai prie aikštelės per rungtynes LKL 60 sek.",6,"vnt",315,null,{"$f":"IF(ISBLANK(E344),\"\", PRODUCT(C344,E344)+PRODUCT(C344,E344,F337))","v":1890.1890000000001}]
["5.2.6.","LED ekranai prie aikštelės per rungtynes Eurolyga 60 sek.",6,"vnt",448,null,{"$f":"IF(ISBLANK(E345),\"\", PRODUCT(C345,E345)+PRODUCT(C345,E345,F337))","v":2688.2687999999998}]
["5.2.7.","Reklamos „Žalgirio“ arenos lauko LED ekrane, 1 savaitė",6,"vnt",350,null,{"$f":"IF(ISBLANK(E346),\"\", PRODUCT(C346,E346)+PRODUCT(C346,E346,F337))","v":2100.21}]
["5.2.8.","Reklamos „Žalgirio“ arenos lauko LED ekrane, 1 mėnesis",6,"vnt",1190,null,{"$f":"IF(ISBLANK(E347),\"\", PRODUCT(C347,E347)+PRODUCT(C347,E347,F337))","v":7140.7139999999999}]
["5.3.","Reklama prekybos centrų LCD ekranuose"]
["5.3.1.","10 s. informacinės žinutės (TV klipas, Power Point (PPT) skaidrės, tekstinė informacija) transliacija kas 12 min. 10-tyje miestų prekybos centruose esančiuose LCD ekranuose (1 diena)",84,"vnt",69.16,null,{"$f":"IF(ISBLANK(E349),\"\", PRODUCT(C349,E349)+PRODUCT(C349,E349,F337))","v":5810.0209439999999}]
["5.4.","Reklama ekranuose sveikatos priežiūros įstaigose visoje Lietuvoje"]
["5.4.1.","Ekranai sveikatos priežiūros įstaigose Transliuojant 1 vnt. reklaminį klipą, visoje Lietuvoje (35 gydymo įstaigos), 15 s. trukmės klipas, rodomas kas 8 min.",3,"mėn",1556.67,null,{"$f":"IF(ISBLANK(E351),\"\", PRODUCT(C351,E351)+PRODUCT(C351,E351,F337))","v":4670.4770010000002}]
["5.4.2.","Ekranai sveikatos priežiūros įstaigose Transliuojant 1 vnt. reklaminį klipą, visoje Lietuvoje (35 gydymo įstaigos), 15 s. trukmės klipas, rodomas kas 4 min.",1,"mėn",2420,null,{"$f":"IF(ISBLANK(E352),\"\", PRODUCT(C352,E352)+PRODUCT(C352,E352,F337))","v":2420.2420000000002}]
["5.4.3.","Ekranai sveikatos priežiūros įstaigose Transliuojant 1 vnt. reklaminį klipą, Kaune (2 gydymo įstaigos), 15 s. trukmės klipas, rodomas kas 8 min.",3,"mėn",393.33,null,{"$f":"IF(ISBLANK(E353),\"\", PRODUCT(C353,E353)+PRODUCT(C353,E353,F337))","v":1180.1079990000001}]
["5.4.4.","Ekranai sveikatos priežiūros įstaigose Transliuojant 1 vnt. reklaminį klipą, Kaune (2 gydymo įstaigos), 15 s. trukmės klipas, rodomas kas 4 min.",1,"mėn",610,null,{"$f":"IF(ISBLANK(E354),\"\", PRODUCT(C354,E354)+PRODUCT(C354,E354,F337))","v":610.06100000000004}]
["5.5.","Reklama kino teatruose visoje Lietuvoje"]
["5.5.1.","Reklamos klipo transliavimas prieš filmus – iki 30 s., kaina už vieną žiūrovą, pamačiusį reklamą (1 vnt.)",20000,"vnt",0.06,null,{"$f":"IF(ISBLANK(E356),\"\", PRODUCT(C356,E356)+PRODUCT(C356,E356,F337))","v":1200.1199999999999}]
["5.5.2.","Reklamos klipo transliavimas prieš filmus – 31-60 s., kaina už vieną žiūrovą, pamačiusį reklamą, (1 vnt.)",20000,"vnt",0.09,null,{"$f":"IF(ISBLANK(E357),\"\", PRODUCT(C357,E357)+PRODUCT(C357,E357,F337))","v":1800.18}]
["5.5.3.","Reklamos klipo transliavimas prieš filmus – 61-90 s., kaina už vieną žiūrovą, pamačiusį reklamą (1 vnt.)",10000,"vnt",0.13,null,{"$f":"IF(ISBLANK(E358),\"\", PRODUCT(C358,E358)+PRODUCT(C358,E358,F337))","v":1300.1300000000001}]
["5.6.","Reklama Lietuvos oro uostuose (1 reklaminė pozicija, kurios trukmė 10 s.)"]
["5.6.1.","Video ekranai. Dydis apytiksliai 1,5 kv.m. (75 colių įstrižainė) Kaune (1 ekranas 1 mėnesiui)",15,"vnt",39.9,null,{"$f":"IF(ISBLANK(E360),\"\", PRODUCT(C360,E360)+PRODUCT(C360,E360,F337))","v":598.55984999999998}]
["5.6.2.","Video ekranai. Dydis apytiksliai 0,8 kv.m. (55 colių įstrižainė) Kaune (1 ekranas 1 mėnesiui)",15,"vnt",46.9,null,{"$f":"IF(ISBLANK(E361),\"\", PRODUCT(C361,E361)+PRODUCT(C361,E361,F337))","v":703.57034999999996}]
["5.6.3.","Video ekranai. Dydis apytiksliai 1,5 kv.m. (75 colių įstrižainė) Vilniuje (1 ekranas 1 mėnesiui)",9,"vnt",220.5,null,{"$f":"IF(ISBLANK(E362),\"\", PRODUCT(C362,E362)+PRODUCT(C362,E362,F337))","v":1984.6984500000001}]
["5.6.4.","Video ekranai. Dydis apytiksliai 0,5 kv.m. (43 colių įstrižainė) Vilniuje (1 ekranas 1 mėnesiui)",6,"vnt",213.5,null,{"$f":"IF(ISBLANK(E363),\"\", PRODUCT(C363,E363)+PRODUCT(C363,E363,F337))","v":1281.1280999999999}]
["5.6.5.","Video ekranai. Dydis apytiksliai 1,5 kv.m. (75 colių įstrižainė) Palangoje (1 ekranas 1 mėnesiui)",3,"vnt",38.5,null,{"$f":"IF(ISBLANK(E364),\"\", PRODUCT(C364,E364)+PRODUCT(C364,E364,F337))","v":115.51155}]
["5.6.6.","Video ekranai. Dydis apytiksliai 0,8 kv.m. (55 colių įstrižainė) Palangoje (1 ekranas 1 mėnesiui)",3,"vnt",28,null,{"$f":"IF(ISBLANK(E365),\"\", PRODUCT(C365,E365)+PRODUCT(C365,E365,F337))","v":84.008399999999995}]
["5.7.","Skaitmeninės vitrinos ir skaitmeniniai Full HD raiškos transporto laukimo paviljonai Vilniuje"]
["5.7.1.","Skaitmeninės vitrinos Vilniuje (iki 10 s. video klipo transliacijos kas 4-tą min. ne mažiau kaip 20 ekranų) ",6,"savaitė",1962.99,null,{"$f":"IF(ISBLANK(E367),\"\", PRODUCT(C367,E367)+PRODUCT(C367,E367,F337))","v":11779.117794}]
["5.7.2.","Skaitmeniniai Full HD raiškos transporto laukimo paviljonai Vilniuje (iki 10 s. video klipo transliacijos kas 4-tą min. ne mažiau kaip 10 transporto laukimo paviljonų)",12,"savaitė",1034.69,null,{"$f":"IF(ISBLANK(E368),\"\", PRODUCT(C368,E368)+PRODUCT(C368,E368,F337))","v":12417.521628}]
[null,null,null,null,"Palyginamoji pasiūlymo kaina be PVM",null,{"$f":"IF((COUNT(C337:C368)<>COUNT(G337:G368)),\"\", SUM(G337:G368))","v":88257.484865999999},{"$f":"IF((COUNT(C337:C368)<>COUNT(G337:G368)),\"Neužpildytos visų objektų kainos\", \"\")","v":""}]
[null,null,null,null,"PVM suma",null,{"$f":"G369*0.21","v":18534.071821859998}]
[null,null,null,null,"Palyginamoji pasiūlymo kaina su PVM",null,{"$f":"IF(ISBLANK(G370), \"\", SUM(G369:G370))","v":106791.55668785999}]
[]
[]
[]
["6. DALIS","SKAITMENINĖS REKLAMOS IR REKLAMOS SOCIALINIUOSE TINKLUOSE PLANAVIMAS, ADMINISTRAVIMAS IR REKLAMINIŲ KAMPANIJŲ ANALIZĖ"]
[]
["Tiekėjo pasiūlymas:"]
["Nr.","Pavadinimas","Preliminati apimtis","Mato vienetas","Vieneto įkainis be PVM, Eur","Administravimo procentas (%)","Suma be PVM, Eur"]
["6.","Skaitmeninės reklamos ir reklamos socialiniuose tinkluose planavimas, administravimas ir reklaminių kampanijų analizė"]
["6.1.","Skaitmeninės reklamos ir reklamos socialiniuose tinkluose planavimas, administravimas ir reklaminių kampanijų analizė"]
["6.1.1.","Projektų vadovas",150,"val",null,null,{"$f":"IF(ISBLANK(E381),\"\", PRODUCT(C381,E381)+PRODUCT(C381,E381,F381))","v":""}]
["6.1.2.","Reklamos planavimo specialistas",150,"val",null,null,{"$f":"IF(ISBLANK(E382),\"\", PRODUCT(C382,E382)+PRODUCT(C382,E382,F381))","v":""}]
["6.1.3.","Medijų analitikas",50,"val",null,null,{"$f":"IF(ISBLANK(E383),\"\", PRODUCT(C383,E383)+PRODUCT(C383,E383,F381))","v":""}]
["6.1.4.","Facebook, news feed (Tūkstantis parodymų)",50000,"vnt",null,null,{"$f":"IF(ISBLANK(E384),\"\", PRODUCT(C384,E384)+PRODUCT(C384,E384,F381))","v":""}]
["6.1.5.","Facebook, stories (Tūkstantis parodymų)",25000,"vnt",null,null,{"$f":"IF(ISBLANK(E385),\"\", PRODUCT(C385,E385)+PRODUCT(C385,E385,F381))","v":""}]
["6.1.6.","Facebook, news feed (Paspaudimas)",100000,"vnt",null,null,{"$f":"IF(ISBLANK(E386),\"\", PRODUCT(C386,E386)+PRODUCT(C386,E386,F381))","v":""}]
["6.1.7.","Facebook, stories (Paspaudimas)",75000,"vnt",null,null,{"$f":"IF(ISBLANK(E387),\"\", PRODUCT(C387,E387)+PRODUCT(C387,E387,F381))","v":""}]
["6.1.8.","Snapchat, stories (Tūkstantis parodymų)",2000,"vnt",null,null,{"$f":"IF(ISBLANK(E388),\"\", PRODUCT(C388,E388)+PRODUCT(C388,E388,F381))","v":""}]
["6.1.9.","Programmatic, 970x250 (Tūkstantis parodymų)",10000,"vnt",null,null,{"$f":"IF(ISBLANK(E389),\"\", PRODUCT(C389,E389)+PRODUCT(C389,E389,F381))","v":""}]
["6.1.10.","Programmatic, 300x600 (Tūkstantis parodymų)",20000,"vnt",null,null,{"$f":"IF(ISBLANK(E390),\"\", PRODUCT(C390,E390)+PRODUCT(C390,E390,F381))","v":""}]
["6.1.11.","Programmatic, 300x250 (Tūkstantis parodymų)",20000,"vnt",null,null,{"$f":"IF(ISBLANK(E391),\"\", PRODUCT(C391,E391)+PRODUCT(C391,E391,F381))","v":""}]
["6.1.12.","Google reklama paieškoje pagal tinkamus raktinius žodžius (Paspaudimas)",30000,"vnt",null,null,{"$f":"IF(ISBLANK(E392),\"\", PRODUCT(C392,E392)+PRODUCT(C392,E392,F381))","v":""}]
["6.1.13.","Reklama Google vaizdinės reklamos tinkle (Paspaudimas)",100000,"vnt",null,null,{"$f":"IF(ISBLANK(E393),\"\", PRODUCT(C393,E393)+PRODUCT(C393,E393,F381))","v":""}]
["6.1.14.","Reklama Google elektroninio pašto reklamos tinkle (Paspaudimas)",20000,"vnt",null,null,{"$f":"IF(ISBLANK(E394),\"\", PRODUCT(C394,E394)+PRODUCT(C394,E394,F381))","v":""}]
["6.1.15.","YouTube, 30 sek. Video (Skippable in-stream ad) (Tūkstantis peržiūrų)",4000,"vnt",null,null,{"$f":"IF(ISBLANK(E395),\"\", PRODUCT(C395,E395)+PRODUCT(C395,E395,F381))","v":""}]
["6.1.16.","YouTube, iki 6 sek. Video (Bumper ad) (Tūkstantis peržiūrų)",4000,"vnt",null,null,{"$f":"IF(ISBLANK(E396),\"\", PRODUCT(C396,E396)+PRODUCT(C396,E396,F381))","v":""}]
["6.1.17.","Reklama Spotify audio reklamos tinkle, 20 sek. audio (Tūkstantis transliacijų)",400,"vnt",null,null,{"$f":"IF(ISBLANK(E397),\"\", PRODUCT(C397,E397)+PRODUCT(C397,E397,F381))","v":""}]
[null,null,null,null,"Palyginamoji pasiūlymo kaina be PVM",null,{"$f":"IF((COUNT(C381:C397)<>COUNT(G381:G397)),\"\", SUM(G381:G397))","v":""},{"$f":"IF((COUNT(C381:C397)<>COUNT(G381:G397)),\"Neužpildytos visų objektų kainos\", \"\")","v":"Neužpildytos visų objektų kainos"}]
[null,null,null,null,"PVM suma"]
[null,null,null,null,"Palyginamoji pasiūlymo kaina su PVM",null,{"$f":"IF(ISBLANK(G399), \"\", SUM(G398:G399))","v":""}]

{"sheet":"Subtiekėjai ir priedai","index":1,"n_rows":100,"n_cols":11,"rows_kept":100,"cut":false,"hidden":false,"merged":[[47,0,47,9],[52,4,52,9],[50,4,50,9],[52,0,52,3],[50,0,50,3],[38,1,38,6],[37,1,37,6],[36,1,36,6],[35,1,35,6],[43,1,43,6],[42,1,42,6],[41,1,41,6],[40,1,40,6],[39,1,39,6],[32,0,32,9],[34,7,34,9],[34,1,34,6],[45,7,45,9],[42,7,42,9],[37,7,37,9],[36,7,36,9],[35,7,35,9],[44,7,44,9],[43,7,43,9],[41,7,41,9],[40,7,40,9],[39,7,39,9],[38,7,38,9],[45,1,45,6],[44,1,44,6],[1,0,2,10],[30,0,30,9],[14,5,14,7],[8,5,8,7],[7,5,7,7],[6,5,6,7],[14,8,14,9],[8,8,8,9],[7,8,7,9],[6,8,6,9],[14,0,14,1],[8,0,8,1],[7,0,7,1],[6,0,6,1],[14,2,14,4],[8,2,8,4],[7,2,7,4],[9,8,9,9],[6,2,6,4],[5,2,5,4],[5,8,5,9],[4,8,4,9],[4,5,4,7],[4,2,4,4],[4,0,4,1],[5,5,5,7],[5,0,5,1],[9,0,9,1],[13,2,13,4],[12,2,12,4],[11,2,11,4],[10,2,10,4],[9,2,9,4],[13,5,13,7],[12,5,12,7],[11,5,11,7],[10,5,10,7],[9,5,9,7],[16,0,16,10],[18,8,18,9],[18,5,18,7],[18,2,18,4],[18,0,18,1],[13,0,13,1],[12,0,12,1],[11,0,11,1],[10,0,10,1],[13,8,13,9],[12,8,12,9],[11,8,11,9],[10,8,10,9],[23,8,23,9],[22,8,22,9],[21,8,21,9],[20,8,20,9],[19,8,19,9],[28,8,28,9],[27,8,27,9],[26,8,26,9],[25,8,25,9],[24,8,24,9],[23,5,23,7],[22,5,22,7],[21,5,21,7],[20,5,20,7],[19,5,19,7],[28,5,28,7],[27,5,27,7],[26,5,26,7],[25,5,25,7],[24,5,24,7],[23,2,23,4],[22,2,22,4],[21,2,21,4],[20,2,20,4],[19,2,19,4],[28,2,28,4],[27,2,27,4],[26,2,26,4],[25,2,25,4],[24,2,24,4],[23,0,23,1],[22,0,22,1],[21,0,21,1],[20,0,20,1],[19,0,19,1],[28,0,28,1],[27,0,27,1],[26,0,26,1],[25,0,25,1],[24,0,24,1]]}
[]
["Ūkio subjektai (įskaitant kvazisubtiekėjus - fiziniai asmenys, kuriuos ketinama įdarbinti pirkimo laimėjimo atveju), kurių pajėgumais tiekėjas remiasi, kad atitiktų keliamus kvalifikacijos reikalavimus:"]
[]
[]
["Pavadinimas*",null,"Kodas, adresas",null,null,"Perduodami įsipareigojimai",null,null,"Perduodamų įsipareigojimų dalis nuo visos pirkimo sutarties (Eur arba %)",null,"Kval. Reikalavimo Nr."]
[]
[]
[]
[]
[]
[]
[]
[]
[]
[]
[]
["Subtiekėjams / subteikėjams / subrangovams numatomos perduoti veiklos (privaloma nurodyti) ir šių ūkio subjektų pavadinimai (jei žinomi):"]
[]
["Pavadinimas",null,"Kodas, adresas",null,null,"Perduodama veikla*",null,null,"Perduodamos veiklos dalis nuo visos pirkimo sutarties (Eur arba %)"]
[]
[]
[]
[]
[]
[]
[]
[]
[]
[]
[]
[]
[]
["Kartu su pasiūlymu pateikiami šie dokumentai:"]
[]
["Nr.","Dokumento  pavadinimas",null,null,null,null,null,"Dokumentas yra konfidencialus? Taip/Ne"]
[1,"Jungtinės veiklos kopija (jei taikoma)"]
[2,"Europos bendrasis viešųjų pirkimų dokumentas",null,null,null,null,null,"Ne"]
[3,"Subtiekimo sutartis, ketinimų protokolas, preliminarios sutartys ar kiti dokumentai, patvirtinantys, kad laimėjus pirkimą tiekėjui bus prieinami kitų ūkio subjektų ištekliai (jei pasitelkiami kvalifikacijos atitikimui)"]
[4,"2_CARAT_Techninė specifikacija-s0827.pdf",null,null,null,null,null,"Ne"]
[5,"4_CARAT_Spaudos tirazu irodymai-s0827.pdf",null,null,null,null,null,"Taip"]
[6,"5_CARAT_Interneto portalu irodymai-s0827.pdf",null,null,null,null,null,"Taip"]
[]
[]
[]
[]
[]
[]
["Pasiūlyme nurodyta Prekės kaina, išskyrus jos sudedamąsias dalis, subtiekėjai, taip pat kita informacija, kuri teisės aktų nustatyta tvarka turi būti skelbiama arba kitokiu būdu viešai prieinama visuomenei, nėra laikoma konfidencialia informacija. Konfidencialią informaciją sudaro, visų pirma, komercinė (gamybinė) paslaptis ir konfidencialieji pasiūlymų aspektai. Informacija, kurią viešai skelbti įpareigoja Lietuvos Respublikos įstatymai, negali būti tiekėjo nurodoma kaip konfidenciali, todėl, tiekėjui nurodžius tokią informaciją kaip konfidencialią, perkančioji organizacija turi teisę ją skelbti. Jei tiekėjas nenurodo konfidencialios informacijos, laikoma, kad konfidencialios informacijos tiekėjo pasiūlyme nėra. Vadovaujantis Informacijos viešinimo Centrinėje viešųjų pirkimų informacinėje sistemoje tvarkos aprašu, patvirtintu Viešųjų pirkimų tarnybos direktoriaus 2017 m. birželio 19 d. įsakymu Nr. 1S-91 „Dėl Informacijos viešinimo Centrinėje viešųjų pirkimų informacinėje sistemoje tvarkos aprašo patvirtinimo“, perkančioji organizacija laimėjusio dalyvio pasiūlymą, išskyrus informaciją, kurią tiekėjas nurodė kaip konfidencialią, paskelbs CVP IS."]
[]
[]
["Tiekėjo arba jo įgalioto asmens pareigų pavadinimas:",null,null,null,"Vykdančioji direktorė"]
[]
["Pasirašančio asmens vardas ir pavardė:",null,null,null,"Rita Jermakaitė"]
[]
[]
[]
[]
[]
[]
[]
[]
[]
[]
[]
[]
[]
[]
[]
[]
[]
[]
[]
[]
[]
[]
[]
[]
[]
[]
[]
[]
[]
[]
[]
[]
[]
[]
[]
[]
[]
[]
[]
[]
[]
[]
[]
[]
[]
[]
["2363 2021-07-25 14:39:51"]